[Event "*** SCC Grand Prix: Titled Tuesday Blitz"]
[Site "Chess.com"]
[Date "2020.06.09"]
[Round "6"]
[White "kleinebeer98"]
[Black "Jospem"]
[Result "0-1"]
[WhiteElo "2658"]
[BlackElo "2860"]
[TimeControl "180+1"]
[EndTime "10:03:38 PDT"]
[Termination "Jospem won by resignation"]

1. e4 {[%clk 0:03:00.9]} 1... c5 {[%clk 0:02:32.5]} 2. Nf3 {[%clk 0:02:59.4]}
2... d6 {[%clk 0:02:32.9]} 3. d4 {[%clk 0:02:59.7]} 3... cxd4 {[%clk 0:02:33.8]}
4. Nxd4 {[%clk 0:03:00.6]} 4... a6 {[%clk 0:02:34.4]} 5. Nc3 {[%clk 0:03:00.5]}
5... Nf6 {[%clk 0:02:34.9]} 6. a3 {[%clk 0:03:00.6]} 6... e6 {[%clk 0:02:34.6]}
7. Be3 {[%clk 0:03:00.1]} 7... b6 {[%clk 0:02:34.9]} 8. f4 {[%clk 0:03:00.4]}
8... Bb7 {[%clk 0:02:35.5]} 9. Bd3 {[%clk 0:03:00.6]} 9... Nbd7 {[%clk
0:02:36.1]} 10. O-O {[%clk 0:03:00.8]} 10... Be7 {[%clk 0:02:36.6]} 11. Kh1
{[%clk 0:03:01]} 11... O-O {[%clk 0:02:36.8]} 12. Qf3 {[%clk 0:02:59.7]} 12...
Rc8 {[%clk 0:02:37.1]} 13. Rae1 {[%clk 0:02:59.8]} 13... Rxc3 {[%clk 0:02:31.3]}
14. bxc3 {[%clk 0:02:59.7]} 14... Nc5 {[%clk 0:02:32]} 15. Qh3 {[%clk
0:02:57.1]} 15... Nfxe4 {[%clk 0:02:27.8]} 16. Bc1 {[%clk 0:02:37.8]} 16... Bf6
{[%clk 0:02:13.5]} 17. a4 {[%clk 0:02:26.5]} 17... Nxd3 {[%clk 0:02:02.7]} 18.
Qxd3 {[%clk 0:02:21.8]} 18... Nc5 {[%clk 0:02:01.4]} 19. Qg3 {[%clk 0:02:17.3]}
19... Nxa4 {[%clk 0:01:52.1]} 20. Bd2 {[%clk 0:02:12.4]} 20... Nc5 {[%clk
0:01:51.1]} 21. f5 {[%clk 0:02:11]} 21... e5 {[%clk 0:01:47.1]} 22. Nb3 {[%clk
0:02:10.4]} 22... Ne4 {[%clk 0:01:45.7]} 23. Qd3 {[%clk 0:02:10.1]} 23... d5
{[%clk 0:01:42.4]} 24. Be3 {[%clk 0:02:08.5]} 24... Qc7 {[%clk 0:01:41]} 25. Nd2
{[%clk 0:02:01]} 25... Nxc3 {[%clk 0:01:24.2]} 26. Bxb6 {[%clk 0:01:58.3]} 26...
Qc6 {[%clk 0:01:23.5]} 27. Qxc3 {[%clk 0:01:58.8]} 27... Qxc3 {[%clk 0:01:22.5]}
0-1

[Event "*** SCC Grand Prix: Titled Tuesday Blitz"]
[Site "Chess.com"]
[Date "2020.06.09"]
[Round "6"]
[White "MFguimaraes"]
[Black "AlexSuv"]
[Result "1/2-1/2"]
[WhiteElo "2466"]
[BlackElo "2677"]
[TimeControl "180+1"]
[EndTime "10:03:41 PDT"]
[Termination "Game drawn by agreement"]

1. e4 {[%clk 0:02:58.4]} 1... c5 {[%clk 0:02:59.9]} 2. Nf3 {[%clk 0:02:58.2]}
2... e6 {[%clk 0:03:00.5]} 3. g3 {[%clk 0:02:57.5]} 3... Nc6 {[%clk 0:02:59.6]}
4. Bg2 {[%clk 0:02:57]} 4... d5 {[%clk 0:02:59]} 5. exd5 {[%clk 0:02:57.9]} 5...
exd5 {[%clk 0:02:59.6]} 6. d4 {[%clk 0:02:58.5]} 6... Bg4 {[%clk 0:02:58.8]} 7.
O-O {[%clk 0:02:55.7]} 7... cxd4 {[%clk 0:02:56.9]} 8. h3 {[%clk 0:02:54.5]}
8... Bxf3 {[%clk 0:02:56.8]} 9. Qxf3 {[%clk 0:02:55.4]} 9... Nf6 {[%clk
0:02:57]} 10. Bg5 {[%clk 0:02:55.4]} 10... Be7 {[%clk 0:02:57.4]} 11. Bxf6
{[%clk 0:02:42.8]} 11... Bxf6 {[%clk 0:02:58.3]} 12. Re1+ {[%clk 0:02:43]} 12...
Kf8 {[%clk 0:02:58.2]} 13. Qxd5 {[%clk 0:02:41.9]} 13... g6 {[%clk 0:02:57.3]}
14. Nd2 {[%clk 0:02:23.6]} 14... Kg7 {[%clk 0:02:56.8]} 15. Nb3 {[%clk
0:02:15.7]} 15... Qxd5 {[%clk 0:02:32]} 16. Bxd5 {[%clk 0:02:16.6]} 16... Rac8
{[%clk 0:02:32.6]} 17. a3 {[%clk 0:02:10]} 17... b6 {[%clk 0:02:27.7]} 18. Rad1
{[%clk 0:02:08.1]} 18... Rhd8 {[%clk 0:02:25.6]} 19. Bxc6 {[%clk 0:01:47]} 19...
Rxc6 {[%clk 0:02:25.4]} 20. Re2 {[%clk 0:01:47.3]} 20... a5 {[%clk 0:02:06.5]}
21. Red2 {[%clk 0:01:46.3]} 21... h5 {[%clk 0:01:43.8]} 22. Nxd4 {[%clk
0:01:34.6]} 22... Bxd4 {[%clk 0:01:44.7]} 23. Rxd4 {[%clk 0:01:35]} 23... Rxd4
{[%clk 0:01:45.6]} 24. Rxd4 {[%clk 0:01:35.9]} 24... Rxc2 {[%clk 0:01:46.2]} 25.
b4 {[%clk 0:01:36]} 1/2-1/2

[Event "*** SCC Grand Prix: Titled Tuesday Blitz"]
[Site "Chess.com"]
[Date "2020.06.09"]
[Round "6"]
[White "iaraldinho"]
[Black "TigranMukhutdinov"]
[Result "1-0"]
[WhiteElo "2632"]
[BlackElo "2476"]
[TimeControl "180+1"]
[EndTime "10:03:48 PDT"]
[Termination "iaraldinho won by resignation"]

1. e4 {[%clk 0:03:00.9]} 1... c5 {[%clk 0:02:59.9]} 2. Nf3 {[%clk 0:03:00.6]}
2... Nc6 {[%clk 0:03:00.5]} 3. d4 {[%clk 0:03:00.7]} 3... cxd4 {[%clk
0:03:01.4]} 4. Nxd4 {[%clk 0:03:01.2]} 4... e5 {[%clk 0:03:02]} 5. Nb5 {[%clk
0:03:00.7]} 5... d6 {[%clk 0:03:02.5]} 6. N1c3 {[%clk 0:03:00.7]} 6... a6 {[%clk
0:03:03]} 7. Na3 {[%clk 0:03:00.8]} 7... b5 {[%clk 0:03:03.6]} 8. Nd5 {[%clk
0:03:01.1]} 8... Nce7 {[%clk 0:03:04.2]} 9. c4 {[%clk 0:03:01.1]} 9... Nxd5
{[%clk 0:03:04]} 10. exd5 {[%clk 0:03:02]} 10... bxc4 {[%clk 0:03:03.2]} 11.
Nxc4 {[%clk 0:03:00.7]} 11... Nf6 {[%clk 0:03:03.8]} 12. Be2 {[%clk 0:03:01]}
12... Be7 {[%clk 0:03:03.2]} 13. O-O {[%clk 0:03:00.8]} 13... O-O {[%clk
0:03:03.4]} 14. Be3 {[%clk 0:03:00.9]} 14... Rb8 {[%clk 0:03:03.5]} 15. a3
{[%clk 0:02:56.1]} 15... Bb7 {[%clk 0:03:03.1]} 16. Nb6 {[%clk 0:02:53.2]} 16...
Nd7 {[%clk 0:03:03.2]} 17. Nxd7 {[%clk 0:02:51.3]} 17... Qxd7 {[%clk 0:03:04.1]}
18. b4 {[%clk 0:02:50.6]} 18... f5 {[%clk 0:03:03.6]} 19. g3 {[%clk 0:02:47]}
19... f4 {[%clk 0:03:02.6]} 20. Bg4 {[%clk 0:02:46.3]} 20... Qd8 {[%clk
0:02:57]} 21. Be6+ {[%clk 0:02:37.9]} 21... Kh8 {[%clk 0:02:55.8]} 22. Bd2
{[%clk 0:02:38]} 22... Bc8 {[%clk 0:02:54.9]} 23. Qg4 {[%clk 0:02:34.5]} 23...
Bxe6 {[%clk 0:02:54.3]} 24. dxe6 {[%clk 0:02:34.3]} 24... Qb6 {[%clk 0:02:41.9]}
25. Rac1 {[%clk 0:02:20.2]} 25... Rf6 {[%clk 0:02:34]} 26. Kh1 {[%clk
0:02:16.2]} 26... Rbf8 {[%clk 0:02:33.3]} 27. gxf4 {[%clk 0:02:14.2]} 27... exf4
{[%clk 0:02:31.7]} 28. Qf3 {[%clk 0:02:12]} 28... Rxe6 {[%clk 0:02:25.9]} 29.
Rc6 {[%clk 0:02:10.6]} 29... Qb7 {[%clk 0:02:25.4]} 30. Rfc1 {[%clk 0:02:10.2]}
30... Rg6 {[%clk 0:02:17.5]} 31. h3 {[%clk 0:02:06.4]} 31... Qb5 {[%clk
0:02:05.1]} 32. Rc7 {[%clk 0:01:59.9]} 32... Bh4 {[%clk 0:02:01.2]} 33. Rf7
{[%clk 0:01:39.4]} 33... Re8 {[%clk 0:01:50.1]} 34. Rxf4 {[%clk 0:01:38.4]}
34... Bg5 {[%clk 0:01:47.4]} 35. Rf8+ {[%clk 0:01:37.1]} 1-0

[Event "*** SCC Grand Prix: Titled Tuesday Blitz"]
[Site "Chess.com"]
[Date "2020.06.09"]
[Round "6"]
[White "ClassyEl"]
[Black "kot60"]
[Result "1-0"]
[WhiteElo "2519"]
[BlackElo "2354"]
[TimeControl "180+1"]
[EndTime "10:04:12 PDT"]
[Termination "ClassyEl won by resignation"]

1. d4 {[%clk 0:03:00.9]} 1... Nf6 {[%clk 0:02:32]} 2. Bg5 {[%clk 0:03:00.6]}
2... Ne4 {[%clk 0:02:31.7]} 3. Bf4 {[%clk 0:03:00.5]} 3... d5 {[%clk 0:02:32.2]}
4. e3 {[%clk 0:03:00.5]} 4... c5 {[%clk 0:02:31.4]} 5. Bd3 {[%clk 0:03:00.6]}
5... Nf6 {[%clk 0:02:29.3]} 6. dxc5 {[%clk 0:03:00.5]} 6... Qa5+ {[%clk
0:02:28.7]} 7. Nc3 {[%clk 0:02:59.9]} 7... Qxc5 {[%clk 0:02:28.5]} 8. Nf3 {[%clk
0:03:00.2]} 8... e6 {[%clk 0:02:27.5]} 9. a3 {[%clk 0:02:58.5]} 9... Bd7 {[%clk
0:02:22.9]} 10. O-O {[%clk 0:02:58.1]} 10... Bd6 {[%clk 0:02:19.1]} 11. b4
{[%clk 0:02:50.4]} 11... Qc7 {[%clk 0:02:18.1]} 12. Bxd6 {[%clk 0:02:47.4]}
12... Qxd6 {[%clk 0:02:17.7]} 13. Nb5 {[%clk 0:02:40.8]} 13... Bxb5 {[%clk
0:02:16]} 14. Bxb5+ {[%clk 0:02:40.5]} 14... Nc6 {[%clk 0:02:15.2]} 15. c4
{[%clk 0:02:40.7]} 15... O-O {[%clk 0:02:11]} 16. Rc1 {[%clk 0:02:26.6]} 16...
Rac8 {[%clk 0:02:07.4]} 17. cxd5 {[%clk 0:02:20.3]} 17... Qxd5 {[%clk
0:02:03.9]} 18. Qxd5 {[%clk 0:02:18.3]} 18... exd5 {[%clk 0:01:58.7]} 19. Bxc6
{[%clk 0:02:18.1]} 19... bxc6 {[%clk 0:01:53.8]} 20. Nd4 {[%clk 0:02:17.7]}
20... Ne4 {[%clk 0:01:49.8]} 21. Rxc6 {[%clk 0:02:10.2]} 21... Nd2 {[%clk
0:01:46.9]} 22. Rfc1 {[%clk 0:01:55.6]} 22... Nc4 {[%clk 0:01:43.3]} 23. a4
{[%clk 0:01:55.7]} 23... a6 {[%clk 0:01:40.8]} 24. Rxa6 {[%clk 0:01:47]} 24...
g6 {[%clk 0:01:38.3]} 25. g3 {[%clk 0:01:39.9]} 25... Nd2 {[%clk 0:01:35.5]} 26.
Rac6 {[%clk 0:01:36.3]} 26... Nc4 {[%clk 0:01:29.5]} 27. e4 {[%clk 0:01:21.9]}
27... Rxc6 {[%clk 0:01:27.6]} 28. Nxc6 {[%clk 0:01:21.9]} 28... Nb6 {[%clk
0:01:24]} 29. a5 {[%clk 0:01:21.5]} 1-0

[Event "*** SCC Grand Prix: Titled Tuesday Blitz"]
[Site "Chess.com"]
[Date "2020.06.09"]
[Round "6"]
[White "Evgeny_Ermakov1965"]
[Black "ChessQueen"]
[Result "1/2-1/2"]
[WhiteElo "2524"]
[BlackElo "2670"]
[TimeControl "180+1"]
[EndTime "10:04:25 PDT"]
[Termination "Game drawn by agreement"]

1. d4 {[%clk 0:03:00.9]} 1... Nf6 {[%clk 0:02:59.5]} 2. Bf4 {[%clk 0:03:00.8]}
2... d5 {[%clk 0:02:58.6]} 3. e3 {[%clk 0:03:01.1]} 3... c5 {[%clk 0:02:58.8]}
4. c3 {[%clk 0:03:00.9]} 4... Nc6 {[%clk 0:02:58.7]} 5. Nf3 {[%clk 0:03:01.2]}
5... Qb6 {[%clk 0:02:58.2]} 6. Qb3 {[%clk 0:02:59.2]} 6... c4 {[%clk 0:02:58.2]}
7. Qc2 {[%clk 0:02:59.4]} 7... Bf5 {[%clk 0:02:58.1]} 8. Qc1 {[%clk 0:02:59.9]}
8... Nh5 {[%clk 0:02:50.2]} 9. Bg3 {[%clk 0:02:59.7]} 9... Nxg3 {[%clk
0:02:46.8]} 10. hxg3 {[%clk 0:03:00.6]} 10... g6 {[%clk 0:02:45.9]} 11. Nbd2
{[%clk 0:03:00.4]} 11... Bg7 {[%clk 0:02:42.9]} 12. Be2 {[%clk 0:03:01.3]} 12...
e5 {[%clk 0:02:23]} 13. dxe5 {[%clk 0:02:58.5]} 13... Nxe5 {[%clk 0:02:16.3]}
14. Nxe5 {[%clk 0:02:56.4]} 14... Bxe5 {[%clk 0:02:17.2]} 15. Nf3 {[%clk
0:02:55.3]} 15... Bg7 {[%clk 0:02:14.9]} 16. Nd4 {[%clk 0:02:56.2]} 16... Bxd4
{[%clk 0:02:07.6]} 17. cxd4 {[%clk 0:02:53.6]} 17... Qa5+ {[%clk 0:02:01.5]} 18.
Qc3 {[%clk 0:02:53.5]} 18... Qxc3+ {[%clk 0:01:58.8]} 19. bxc3 {[%clk
0:02:54.4]} 19... Kd7 {[%clk 0:01:55.7]} 20. g4 {[%clk 0:02:54.8]} 20... Be6
{[%clk 0:01:51.6]} 21. Kd2 {[%clk 0:02:54.7]} 21... b5 {[%clk 0:01:45.4]} 22. f4
{[%clk 0:02:54.6]} 22... a5 {[%clk 0:01:35]} 23. a3 {[%clk 0:02:50.7]} 23... Kc6
{[%clk 0:01:24.3]} 24. Bf3 {[%clk 0:02:50.3]} 24... f5 {[%clk 0:01:23.4]} 25. g5
{[%clk 0:02:48.2]} 25... Ra7 {[%clk 0:01:21.7]} 26. Rab1 {[%clk 0:02:42.4]}
26... Rb8 {[%clk 0:01:20.8]} 27. Rb2 {[%clk 0:02:38.6]} 27... Bg8 {[%clk
0:01:17]} 28. Rhb1 {[%clk 0:02:36.5]} 28... Rab7 {[%clk 0:01:17.2]} 29. Bd1
{[%clk 0:02:33.8]} 29... Be6 {[%clk 0:01:10.8]} 30. Bf3 {[%clk 0:02:33.7]} 30...
Bd7 {[%clk 0:01:08.9]} 31. Bd1 {[%clk 0:02:33.2]} 31... Kd6 {[%clk 0:01:08.4]}
32. Bf3 {[%clk 0:02:31]} 32... Bc6 {[%clk 0:01:08.7]} 33. Bd1 {[%clk 0:02:29.4]}
33... Rh8 {[%clk 0:01:08.5]} 34. a4 {[%clk 0:02:26.8]} 34... Rhb8 {[%clk
0:01:07.2]} 35. axb5 {[%clk 0:02:26.7]} 35... Rxb5 {[%clk 0:00:59.9]} 36. Rxb5
{[%clk 0:02:25.9]} 36... Rxb5 {[%clk 0:00:45.7]} 37. Rxb5 {[%clk 0:02:25.1]}
37... Bxb5 {[%clk 0:00:45.7]} 38. g3 {[%clk 0:02:21.9]} 38... Bd7 {[%clk
0:00:44.9]} 39. Kc1 {[%clk 0:02:19.1]} 39... Bc6 {[%clk 0:00:44.1]} 1/2-1/2

[Event "*** SCC Grand Prix: Titled Tuesday Blitz"]
[Site "Chess.com"]
[Date "2020.06.09"]
[Round "6"]
[White "ARMQUEEN"]
[Black "Alexey_Spirin"]
[Result "1-0"]
[WhiteElo "2305"]
[BlackElo "2041"]
[TimeControl "180+1"]
[EndTime "10:04:27 PDT"]
[Termination "ARMQUEEN won by resignation"]

1. e4 {[%clk 0:03:00.9]} 1... c5 {[%clk 0:02:59.3]} 2. Nc3 {[%clk 0:02:57.2]}
2... Nc6 {[%clk 0:02:59.6]} 3. Bb5 {[%clk 0:02:54.1]} 3... g6 {[%clk 0:02:59.4]}
4. Bxc6 {[%clk 0:02:53.9]} 4... bxc6 {[%clk 0:02:59.8]} 5. d3 {[%clk 0:02:54.8]}
5... Bg7 {[%clk 0:03:00]} 6. Be3 {[%clk 0:02:53.8]} 6... d6 {[%clk 0:03:00.4]}
7. Nge2 {[%clk 0:02:54.1]} 7... Nf6 {[%clk 0:03:00.6]} 8. h3 {[%clk 0:02:53.6]}
8... Rb8 {[%clk 0:02:59.9]} 9. b3 {[%clk 0:02:53.2]} 9... O-O {[%clk 0:02:56.5]}
10. Qd2 {[%clk 0:02:53.2]} 10... Re8 {[%clk 0:02:56]} 11. O-O {[%clk 0:02:52.4]}
11... Nd7 {[%clk 0:02:34.5]} 12. f4 {[%clk 0:02:50.5]} 12... Qa5 {[%clk
0:02:28.7]} 13. Rae1 {[%clk 0:02:46.1]} 13... Qb4 {[%clk 0:02:24.5]} 14. f5
{[%clk 0:02:41.6]} 14... Ne5 {[%clk 0:02:19.6]} 15. Bh6 {[%clk 0:02:39.4]} 15...
Bh8 {[%clk 0:02:18.7]} 16. fxg6 {[%clk 0:02:39]} 16... hxg6 {[%clk 0:02:18.7]}
17. Qf4 {[%clk 0:02:36.9]} 17... f6 {[%clk 0:02:10.2]} 18. Nd1 {[%clk 0:02:33]}
18... Be6 {[%clk 0:01:49.6]} 19. Qg3 {[%clk 0:02:32]} 19... Bf7 {[%clk
0:01:48.1]} 20. Be3 {[%clk 0:02:28.7]} 20... Bg7 {[%clk 0:01:42.8]} 21. Nf4
{[%clk 0:02:27.9]} 21... g5 {[%clk 0:01:36.9]} 22. Ne2 {[%clk 0:02:27.2]} 22...
Be6 {[%clk 0:01:30.8]} 23. Bxg5 {[%clk 0:02:22.4]} 23... fxg5 {[%clk 0:01:28.7]}
24. Qxg5 {[%clk 0:02:23.3]} 24... Qb7 {[%clk 0:01:06.6]} 25. c3 {[%clk
0:02:13.5]} 25... Rf8 {[%clk 0:01:05]} 26. Nf4 {[%clk 0:02:10.9]} 26... Bf7
{[%clk 0:00:59.7]} 27. Re3 {[%clk 0:02:10.7]} 27... Kh8 {[%clk 0:00:39.8]} 28.
Rg3 {[%clk 0:02:07.1]} 1-0

[Event "*** SCC Grand Prix: Titled Tuesday Blitz"]
[Site "Chess.com"]
[Date "2020.06.09"]
[Round "6"]
[White "Berant"]
[Black "AungTZ"]
[Result "1-0"]
[WhiteElo "2330"]
[BlackElo "2110"]
[TimeControl "180+1"]
[EndTime "10:04:38 PDT"]
[Termination "Berant won by resignation"]

1. e4 {[%clk 0:03:00]} 1... c5 {[%clk 0:02:59.1]} 2. Nf3 {[%clk 0:02:59.5]} 2...
Nc6 {[%clk 0:02:58.3]} 3. d4 {[%clk 0:02:53.8]} 3... cxd4 {[%clk 0:02:50.5]} 4.
Nxd4 {[%clk 0:02:54.7]} 4... Nf6 {[%clk 0:02:49.6]} 5. Nc3 {[%clk 0:02:53.2]}
5... d6 {[%clk 0:02:49.1]} 6. Be2 {[%clk 0:02:51.4]} 6... e5 {[%clk 0:02:48.1]}
7. Nf3 {[%clk 0:02:47.3]} 7... h6 {[%clk 0:02:46.3]} 8. O-O {[%clk 0:02:43.4]}
8... Be7 {[%clk 0:02:45.6]} 9. h3 {[%clk 0:02:39.6]} 9... O-O {[%clk 0:02:45]}
10. Nh2 {[%clk 0:02:40.2]} 10... Be6 {[%clk 0:02:44.1]} 11. Ng4 {[%clk 0:02:37]}
11... Nxg4 {[%clk 0:02:42]} 12. Bxg4 {[%clk 0:02:37.9]} 12... Qd7 {[%clk
0:02:32.1]} 13. Nd5 {[%clk 0:02:34.7]} 13... Bd8 {[%clk 0:02:29.6]} 14. c3
{[%clk 0:02:31.5]} 14... Rc8 {[%clk 0:02:28.4]} 15. Be3 {[%clk 0:02:30.1]} 15...
Bxg4 {[%clk 0:02:20]} 16. hxg4 {[%clk 0:02:27.9]} 16... b6 {[%clk 0:02:17]} 17.
g3 {[%clk 0:02:24.9]} 17... Ne7 {[%clk 0:02:15.1]} 18. Nxe7+ {[%clk 0:02:20.9]}
18... Bxe7 {[%clk 0:02:14.8]} 19. Kg2 {[%clk 0:02:21.3]} 19... Rfd8 {[%clk
0:02:08.1]} 20. Qd2 {[%clk 0:02:11.1]} 20... Qxg4 {[%clk 0:02:01]} 21. f3 {[%clk
0:02:09.1]} 21... Qg6 {[%clk 0:01:59.8]} 22. Rh1 {[%clk 0:02:09]} 22... Bf8
{[%clk 0:01:46.4]} 23. Rad1 {[%clk 0:02:03.1]} 23... f5 {[%clk 0:01:38.4]} 24.
Qd5+ {[%clk 0:01:57.1]} 24... Kh7 {[%clk 0:01:37.8]} 25. exf5 {[%clk 0:01:54.8]}
25... Qxf5 {[%clk 0:01:36.7]} 26. g4 {[%clk 0:01:55.3]} 26... Qg6 {[%clk
0:01:33.8]} 27. Rh3 {[%clk 0:01:51]} 27... Be7 {[%clk 0:01:31.1]} 28. Rdh1
{[%clk 0:01:49.6]} 28... Bg5 {[%clk 0:01:31.2]} 29. Bxg5 {[%clk 0:01:48]} 29...
Qxg5 {[%clk 0:01:31]} 30. Rh5 {[%clk 0:01:47.7]} 30... Qg6 {[%clk 0:01:26.7]}
31. g5 {[%clk 0:01:46.4]} 31... Rc7 {[%clk 0:01:15.1]} 32. Rxh6+ {[%clk
0:01:42.1]} 32... gxh6 {[%clk 0:01:11.6]} 33. Rxh6+ {[%clk 0:01:43]} 33... Qxh6
{[%clk 0:01:11.6]} 34. gxh6 {[%clk 0:01:43.5]} 34... Kxh6 {[%clk 0:01:06.2]} 35.
Qe6+ {[%clk 0:01:41.2]} 35... Kh7 {[%clk 0:01:04.5]} 36. Qf5+ {[%clk 0:01:40.9]}
36... Kg8 {[%clk 0:01:02.3]} 37. Kf2 {[%clk 0:01:39.7]} 37... Rf7 {[%clk
0:01:00.9]} 38. Qg5+ {[%clk 0:01:39.4]} 1-0

[Event "*** SCC Grand Prix: Titled Tuesday Blitz"]
[Site "Chess.com"]
[Date "2020.06.09"]
[Round "6"]
[White "AGW2016"]
[Black "juniortay"]
[Result "1-0"]
[WhiteElo "2267"]
[BlackElo "2407"]
[TimeControl "180+1"]
[EndTime "10:04:44 PDT"]
[Termination "AGW2016 won by resignation"]

1. e4 {[%clk 0:03:00.9]} 1... e5 {[%clk 0:02:59.5]} 2. Nf3 {[%clk 0:03:01.2]}
2... Nf6 {[%clk 0:02:59.3]} 3. Nxe5 {[%clk 0:03:01.1]} 3... Nc6 {[%clk
0:02:59.4]} 4. Nxc6 {[%clk 0:02:55.6]} 4... dxc6 {[%clk 0:03:00.3]} 5. d3 {[%clk
0:02:54.9]} 5... Bc5 {[%clk 0:03:00.5]} 6. Be2 {[%clk 0:02:55.5]} 6... h5 {[%clk
0:03:00.4]} 7. O-O {[%clk 0:02:53.7]} 7... Ng4 {[%clk 0:03:00]} 8. c3 {[%clk
0:02:51.9]} 8... Bb6 {[%clk 0:02:58.3]} 9. d4 {[%clk 0:02:52]} 9... Be6 {[%clk
0:02:54.6]} 10. Bf4 {[%clk 0:02:49.3]} 10... g5 {[%clk 0:02:54]} 11. Bg3 {[%clk
0:02:46.8]} 11... h4 {[%clk 0:02:53]} 12. Bxg4 {[%clk 0:02:46.9]} 12... hxg3
{[%clk 0:02:52.6]} 13. fxg3 {[%clk 0:02:46.5]} 13... Qd6 {[%clk 0:02:46.4]} 14.
Nd2 {[%clk 0:02:44.2]} 14... O-O-O {[%clk 0:02:42.4]} 15. a4 {[%clk 0:02:39.5]}
15... a5 {[%clk 0:02:40.3]} 16. Nc4 {[%clk 0:02:37.2]} 16... Qe7 {[%clk
0:02:32.5]} 17. Nxb6+ {[%clk 0:02:33.9]} 17... cxb6 {[%clk 0:02:33.4]} 18. Bxe6+
{[%clk 0:02:31.5]} 18... Qxe6 {[%clk 0:02:25.5]} 19. Qf3 {[%clk 0:02:31]} 19...
Kb8 {[%clk 0:02:14.1]} 20. Qf5 {[%clk 0:02:28.1]} 20... Qe7 {[%clk 0:02:10.8]}
21. Rae1 {[%clk 0:02:21.3]} 21... Rdf8 {[%clk 0:01:59.8]} 22. e5 {[%clk
0:02:04.3]} 22... Qd8 {[%clk 0:01:35.3]} 23. Qf6 {[%clk 0:02:02.2]} 23... Qd5
{[%clk 0:01:31.6]} 24. Qd6+ {[%clk 0:01:49.6]} 24... Qxd6 {[%clk 0:01:25.9]} 25.
exd6 {[%clk 0:01:50.5]} 25... Rh6 {[%clk 0:01:16.7]} 26. Re7 {[%clk 0:01:48.1]}
26... Rxd6 {[%clk 0:01:13.5]} 27. Rfxf7 {[%clk 0:01:39.9]} 27... Rxf7 {[%clk
0:01:12.6]} 28. Rxf7 {[%clk 0:01:40.5]} 28... b5 {[%clk 0:01:05.2]} 29. axb5
{[%clk 0:01:26.8]} 29... cxb5 {[%clk 0:01:04.1]} 30. Rf5 {[%clk 0:01:27]} 30...
Rb6 {[%clk 0:01:02.8]} 31. Rxg5 {[%clk 0:01:25.4]} 31... Ka7 {[%clk 0:01:02.8]}
32. h4 {[%clk 0:01:22.1]} 32... Ka6 {[%clk 0:01:02.7]} 33. h5 {[%clk 0:01:22.5]}
33... a4 {[%clk 0:01:02.8]} 34. Rg6 {[%clk 0:01:22]} 1-0

[Event "*** SCC Grand Prix: Titled Tuesday Blitz"]
[Site "Chess.com"]
[Date "2020.06.09"]
[Round "6"]
[White "yamalchess"]
[Black "Training_Day"]
[Result "1-0"]
[WhiteElo "2447"]
[BlackElo "2313"]
[TimeControl "180+1"]
[EndTime "10:04:57 PDT"]
[Termination "yamalchess won by resignation"]

1. d4 {[%clk 0:03:00.9]} 1... d5 {[%clk 0:02:59.3]} 2. c4 {[%clk 0:03:00.7]}
2... e6 {[%clk 0:02:59.8]} 3. Nc3 {[%clk 0:03:01.1]} 3... c5 {[%clk 0:03:00.4]}
4. cxd5 {[%clk 0:03:00.3]} 4... exd5 {[%clk 0:03:01]} 5. Nf3 {[%clk 0:03:00.8]}
5... Nc6 {[%clk 0:03:00.6]} 6. g3 {[%clk 0:03:01]} 6... Nf6 {[%clk 0:02:59.3]}
7. Bg2 {[%clk 0:03:01.4]} 7... Be7 {[%clk 0:02:59.6]} 8. O-O {[%clk 0:03:01.9]}
8... O-O {[%clk 0:02:59.6]} 9. Be3 {[%clk 0:03:02.5]} 9... c4 {[%clk 0:02:58.7]}
10. Bg5 {[%clk 0:03:03.1]} 10... Be6 {[%clk 0:02:50.9]} 11. Ne5 {[%clk
0:03:02.4]} 11... h6 {[%clk 0:02:46.8]} 12. Bxf6 {[%clk 0:03:02.1]} 12... Bxf6
{[%clk 0:02:47.7]} 13. f4 {[%clk 0:03:02.5]} 13... Qb6 {[%clk 0:02:30.3]} 14. e3
{[%clk 0:03:01.9]} 14... Bxe5 {[%clk 0:02:12.3]} 15. fxe5 {[%clk 0:03:00.3]}
15... Qxb2 {[%clk 0:01:52.4]} 16. Nxd5 {[%clk 0:02:58.9]} 16... Rad8 {[%clk
0:01:46.1]} 17. Nf4 {[%clk 0:02:41]} 17... c3 {[%clk 0:01:22.7]} 18. Qc1 {[%clk
0:02:22.9]} 18... Bc4 {[%clk 0:01:06.8]} 19. Rf2 {[%clk 0:02:22.4]} 19... Qb4
{[%clk 0:00:57.6]} 20. a3 {[%clk 0:02:09.7]} 20... Qa5 {[%clk 0:00:56.7]} 21.
Rc2 {[%clk 0:02:08.5]} 21... Ne7 {[%clk 0:00:34.3]} 22. Rxc3 {[%clk 0:02:07.8]}
22... b5 {[%clk 0:00:34.3]} 23. a4 {[%clk 0:02:04.4]} 23... Qb6 {[%clk
0:00:24.6]} 24. axb5 {[%clk 0:02:02.1]} 24... Bxb5 {[%clk 0:00:25.5]} 25. Rc5
{[%clk 0:01:59]} 25... Nf5 {[%clk 0:00:18.1]} 26. Nd5 {[%clk 0:01:57.6]} 26...
Qb8 {[%clk 0:00:16.1]} 27. Bh3 {[%clk 0:01:50.7]} 27... Bd7 {[%clk 0:00:11.6]}
28. Bxf5 {[%clk 0:01:49.8]} 28... Bxf5 {[%clk 0:00:11.4]} 29. Ne7+ {[%clk
0:01:50.3]} 1-0